bitfinex-derivatives/quotes_SOLF0:USTF0_20250425
["timestamp","ask_amount","ask_price","bid_price","bid_amount"]
[1745548867448,6.5956,151.57,151.54,6.5967]
[1745548868249,6.5959,151.56,151.53,6.597]
[1745548868649,24.74,151.58,151.53,6.597]
[1745548868849,24.74,151.58,151.54,6.5968]
[1745548869049,31.3352,151.58,151.54,6.5968]
[1745548870953,24.74,151.58,151.51,26.6221]
[1745548871446,6.5959,151.56,151.52,6.5975]
[1745548872853,8.23595185,151.57,151.51,24.74]
[1745548873155,8.23595185,151.57,151.5,1.9849]
[1745548873454,8.23595185,151.57,151.48,1.8696]
[1745548873850,6.597,151.54,151.5,6.5985]
[1745548874050,8.23595185,151.57,151.5,6.5985]
[1745548874556,6.5964,151.55,151.51,6.598]
[1745548875056,24.74,151.58,151.52,8.23595185]
[1745548875457,24.74,151.58,151.53,1.9228]
[1745548876056,31.3353,151.58,151.54,6.5963]
[1745548877260,24.72,151.61,151.56,5.26627316]
[1745548877558,24.72,151.61,151.58,5.26627316]
[1745548877959,31.314,151.61,151.58,5.26627316]
[1745548878558,24.72,151.61,151.58,5.26627316]
[1745548879256,31.3139,151.61,151.55,32.94623128]
[1745548879662,24.72,151.61,151.55,32.94623128]
[1745548879859,24.72,151.61,151.56,6.5957]
[1745548880171,24.72,151.61,151.55,24.72]
[1745548880367,6.5947,151.59,151.55,6.5959]
[1745548880669,24.72,151.61,151.54,1.946]
[1745548881167,6.5945,151.6,151.56,6.5957]
[1745548881569,6.5945,151.6,151.54,1.946]
[1745548881769,6.5945,151.6,151.55,8.22623128]
[1745548883468,6.5945,151.6,151.57,6.5954]
[1745548883673,6.5945,151.6,151.55,8.22623128]
[1745548883869,24.72,151.61,151.55,8.22623128]
[1745548884473,24.72,151.61,151.58,6.5948]
[1745548884775,24.72,151.61,151.57,8.22623128]
[1745548884971,6.5931,151.63,151.59,6.5945]
[1745548885479,24.72,151.64,151.57,8.22623128]
[1745548885779,6.5933,151.62,151.58,6.5949]
[1745548889180,6.5933,151.62,151.59,6.5946]
[1745548890577,24.72,151.64,151.55,8.22623128]
[1745548890881,8.22623128,151.63,151.54,26.666]
[1745548891281,6.5949,151.59,151.56,6.5956]
[1745548891585,6.5949,151.59,151.54,26.666]
[1745548891786,6.5949,151.59,151.55,6.5959]
[1745548893488,6.5951,151.58,151.54,31.3166]
[1745548893986,24.7,151.6,151.53,1.9228]
[1745548894184,24.7,151.6,151.53,8.5199]
[1745548894479,24.7,151.6,151.53,1.9228]
[1745548894679,6.5953,151.58,151.54,6.5967]
[1745548895189,24.7,151.6,151.54,6.5967]
[1745548895390,24.7,151.6,151.53,8.5199]
[1745548895592,24.7,151.6,151.53,1.9228]
[1745548896288,6.5949,151.59,151.55,6.5962]
[1745548899296,11.86221412,151.59,151.55,6.5962]
[1745548900489,5.26731412,151.59,151.55,6.5962]
[1745548900792,5.26731412,151.57,151.51,5.26731412]
[1745548900990,5.26731412,151.53,151.48,1.881]
[1745548901193,6.5979,151.52,151.48,1.881]
[1745548901394,6.5979,151.52,151.48,6.5992]
[1745548901595,29.96731412,151.53,151.48,6.5992]
[1745548903297,24.7,151.53,151.44,32.93870017]
[1745548903493,8.23870017,151.52,151.44,24.7]
[1745548903791,6.5989,151.5,151.46,6.6]
[1745548905092,6.6001,151.47,151.43,6.6015]
[1745548905299,24.72,151.49,151.42,1.881]
[1745548905489,8.23870017,151.48,151.38,387.95870017]
[1745548905695,8.23870017,151.48,151.39,1.8477]
[1745548905899,6.5999,151.47,151.39,1.8477]
[1745548906099,24.72,151.49,151.4,8.23870017]
[1745548906398,24.72,151.49,151.4,10.23990017]
[1745548906698,24.72,151.49,151.4,12.22530017]
[1745548907299,6.5997,151.48,151.44,6.601]
[1745548908102,6.5998,151.47,151.43,6.6015]
[1745548910000,24.72,151.49,151.4,12.22530017]
[1745548910201,8.23870017,151.48,151.4,2.0012]
[1745548911303,6.601,151.45,151.41,6.6023]
[1745548911599,24.72,151.45,151.39,1.8477]
[1745548912201,6.6014,151.44,151.39,8.4506]
[1745548913304,6.6014,151.44,151.4,6.6028]
[1745548913994,6.6014,151.44,151.39,8.4509]
[1745548914705,6.6016,151.43,151.4,6.6028]
[1745548914904,24.72,151.45,151.4,6.6028]
[1745548915300,24.72,151.45,151.39,1.8477]
[1745548915507,24.72,151.45,151.34,1.8817]
[1745548915508,8.23870017,151.44,151.35,24.72]
[1745548915710,8.23870017,151.44,151.34,10.12040017]
[1745548915711,6.6032,151.4,151.34,10.12040017]
[1745548915908,24.72,151.41,151.37,6.6042]
[1745548916103,24.72,151.41,151.34,10.12040017]
[1745548916810,31.3227,151.41,151.34,10.12040017]
[1745548917207,31.3227,151.41,151.37,6.6038]
[1745548917508,6.6029,151.4,151.34,10.12040017]
[1745548917808,6.6029,151.4,151.36,6.6043]
[1745548918108,31.3226,151.41,151.34,10.12040017]
[1745548918309,24.72,151.41,151.34,10.12040017]
[1745548918510,24.72,151.41,151.36,6.6043]
[1745548918906,6.6029,151.4,151.36,6.6043]
[1745548921009,31.3226,151.41,151.37,6.604]
[1745548921911,6.6029,151.4,151.37,6.604]
[1745548922511,31.3225,151.41,151.33,3.8223]
[1745548922711,24.72,151.41,151.33,3.8223]
[1745548923010,6.604,151.38,151.34,6.6052]
[1745548923407,24.74,151.37,151.28,24.74]
[1745548923807,6.606,151.33,151.29,6.6075]
[1745548924008,28.6951,151.37,151.29,6.6075]
[1745548924209,6.6059,151.33,151.29,6.6075]
[1745548924510,8.23870017,151.36,151.28,6.608]
[1745548924810,6.6063,151.33,151.26,1.9101]
[1745548925012,31.3263,151.33,151.28,6.6081]
[1745548926012,31.3263,151.33,151.29,6.6076]
[1745548926716,6.6065,151.32,151.28,6.608]
[1745548927015,24.72,151.33,151.26,1.9101]
[1745548927315,36.61195112,151.33,151.28,6.6077]
[1745548927714,36.61195112,151.33,151.27,5.28595112]
[1745548928614,36.61195112,151.33,151.29,6.6076]
[1745548928818,6.6064,151.32,151.27,5.28595112]
[1745548930213,6.6071,151.31,151.27,5.28595112]
[1745548930413,5.28595112,151.31,151.27,5.28595112]
[1745548930610,5.28595112,151.31,151.26,1.9101]
[1745548930816,5.28595112,151.31,151.25,5.28595112]
[1745548931119,6.6073,151.3,151.26,6.6088]
[1745548931622,6.6073,151.3,151.25,5.28595112]
[1745548931816,5.28595112,151.31,151.25,5.28595112]
[1745548931817,5.28595112,151.32,151.25,5.28595112]
[1745548932022,6.6065,151.32,151.29,5.28595112]
[1745548932220,24.72,151.33,151.31,5.28595112]
[1745548932821,24.72,151.36,151.31,5.28595112]
[1745548933020,24.72,151.36,151.35,6.605]
[1745548933524,24.72,151.36,151.34,6.6054]
[1745548933725,31.3434,151.39,151.35,5.28595112]
[1745548933925,6.6038,151.38,151.35,5.28595112]
[1745548934827,31.3435,151.39,151.35,5.28595112]
[1745548935030,5.28595112,151.38,151.27,5.8491]
[1745548935328,8.25819781,151.36,151.27,30.5891]
[1745548935626,24.74,151.35,151.27,30.5891]
[1745548935829,6.6055,151.34,151.27,30.5891]
[1745548936023,24.74,151.35,151.27,5.8491]
[1745548937229,6.606,151.33,151.29,6.6075]
[1745548937932,6.6067,151.32,151.27,3.8062]
[1745548938231,24.74,151.35,151.27,3.8062]
[1745548938425,31.3453,151.35,151.3,6.6069]
[1745548938728,24.74,151.35,151.3,6.6069]
[1745548939631,6.6058,151.34,151.3,6.6069]
[1745548939831,24.74,151.35,151.31,6.6067]
[1745548940332,31.3453,151.35,151.31,6.6067]
[1745548941334,6.6055,151.34,151.3,6.6071]
[1745548942235,31.3451,151.35,151.31,6.6068]
[1745548942836,24.74,151.35,151.29,8.25819781]
[1745548943833,24.74,151.35,151.32,6.6059]
[1745548945935,31.3451,151.35,151.31,6.6066]
[1745548946439,31.3451,151.35,151.32,6.6063]
[1745548946738,31.3451,151.35,151.29,8.25819781]
[1745548946937,31.3451,151.35,151.31,6.6065]
[1745548947940,31.3451,151.35,151.32,6.6063]
[1745548948239,31.3451,151.35,151.29,8.25819781]
[1745548948635,6.6055,151.34,151.29,8.25819781]
[1745548948937,24.74,151.35,151.27,3.8062]
[1745548950340,24.74,151.35,151.27,12.06439781]
[1745548950634,24.74,151.35,151.29,8.25819781]
[1745548951537,6.6063,151.33,151.29,8.25819781]
[1745548952344,6.6063,151.33,151.29,14.86579781]
[1745548952842,6.6063,151.33,151.29,8.25819781]
[1745548954141,6.6056,151.34,151.29,8.25819781]
[1745548954840,6.6056,151.34,151.3,6.607]
[1745548955243,6.6059,151.33,151.3,6.607]
[1745548955740,24.74,151.35,151.31,14.86459781]
[1745548955941,31.3455,151.35,151.31,14.86459781]
[1745548956339,24.74,151.35,151.32,6.6062]
[1745548956542,6.6047,151.36,151.32,6.6062]
[1745548957045,24.72,151.38,151.31,14.86479781]
[1745548957543,6.6053,151.35,151.31,14.86479781]
[1745548959848,6.6048,151.36,151.33,6.6058]
[1745548960148,24.72,151.38,151.31,8.25819781]
[1745548961254,6.6048,151.36,151.33,6.6058]
[1745548961950,6.6048,151.36,151.31,8.25819781]
[1745548961951,6.6048,151.36,151.32,6.6062]
[1745548962452,6.6053,151.35,151.31,8.25819781]
[1745548962653,6.6053,151.35,151.31,14.86469781]
[1745548963452,6.6053,151.35,151.32,6.6063]
[1745548964051,6.6053,151.35,151.31,14.86479781]
[1745548964552,6.6053,151.35,151.32,6.6063]
[1745548964948,6.6053,151.35,151.31,8.25819781]
[1745548965552,6.6048,151.36,151.31,8.25819781]
[1745548966250,6.6048,151.36,151.32,6.6062]
[1745548967347,6.6048,151.36,151.32,11.88865368]
[1745548967651,6.6048,151.36,151.34,5.28245368]
[1745548968650,6.6048,151.36,151.32,6.6062]
[1745548968853,6.6048,151.36,151.34,5.28245368]
[1745548969454,6.6048,151.36,151.33,6.6059]
[1745548969751,6.6048,151.36,151.33,11.88835368]
[1745548970752,6.6043,151.37,151.33,11.88835368]
[1745548971155,24.72,151.38,151.34,6.6054]
[1745548971354,24.72,151.38,151.35,5.28245368]
[1745548971552,31.3241,151.38,151.29,24.72]
[1745548971748,31.3241,151.38,151.35,5.28245368]
[1745548971950,24.72,151.38,151.34,5.28245368]
[1745548972253,5.28245368,151.38,151.33,5.28245368]
[1745548972954,6.6049,151.36,151.33,5.28245368]
[1745548973357,5.28245368,151.36,151.31,11.88915368]
[1745548973554,5.28245368,151.36,151.31,5.28245368]
[1745548973848,5.28245368,151.36,151.29,24.72]
[1745548973849,5.28245368,151.34,151.29,30.00245368]
[1745548974053,6.6047,151.36,151.31,5.28245368]
[1745548974255,30.00245368,151.37,151.32,5.28245368]
[1745548974655,6.6053,151.35,151.32,5.28245368]
[1745548975259,6.6056,151.34,151.32,5.28245368]
[1745548976558,6.606,151.33,151.3,5.28245368]
[1745548977264,6.6064,151.32,151.28,5.28245368]
[1745548977455,5.28245368,151.33,151.28,5.28245368]
[1745548977660,30.00245368,151.33,151.28,5.28245368]
[1745548978057,6.6068,151.31,151.28,5.28245368]
[1745548980261,5.28245368,151.31,151.17,838.48007472]
[1745548980560,5.28245368,151.29,151.24,5.28245368]
[1745548980760,6.6085,151.27,151.24,11.89205368]
[1745548981360,6.6082,151.28,151.24,11.89205368]
[1745548981962,6.6091,151.26,151.24,5.28245368]
[1745548982362,6.6087,151.27,151.24,5.28245368]
[1745548982565,5.28245368,151.27,151.22,5.28245368]
[1745548983165,11.89125368,151.27,151.22,11.89305368]
[1745548983663,6.6082,151.28,151.22,5.28245368]
[1745548983865,30.00245368,151.29,151.22,5.28245368]
[1745548984164,5.28245368,151.27,151.22,5.28245368]
[1745548985361,6.6097,151.25,151.22,5.28245368]
[1745548985765,6.6097,151.25,151.21,11.89355368]
[1745548985964,6.6102,151.24,151.2,6.6115]
[1745548986467,30.00245368,151.25,151.19,5.28245368]
[1745548986964,6.6104,151.23,151.19,5.28245368]
[1745548987161,30.00245368,151.25,151.19,5.28245368]
[1745548987369,6.6107,151.23,151.19,5.28245368]
[1745548987767,30.00245368,151.25,151.19,5.28245368]
[1745548988065,30.00245368,151.25,151.14,3.9189]
[1745548988363,5.28245368,151.21,151.14,3.9189]
[1745548988564,6.6122,151.19,151.14,15.81545368]
[1745548988759,30.00245368,151.21,151.14,15.81545368]
[1745548989064,5.28245368,151.19,151.14,15.81545368]
[1745548989264,5.28245368,151.19,151.13,6.6145]
[1745548989265,6.6125,151.18,151.13,6.6145]
[1745548989462,6.6125,151.18,151.13,11.89695368]
[1745548989657,5.28245368,151.19,151.13,5.28245368]
[1745548989864,5.28245368,151.19,151.14,6.6141]
[1745548990058,30.00245368,151.21,151.15,5.28245368]
[1745548990263,6.6117,151.2,151.15,6.6135]
[1745548990465,5.28245368,151.19,151.15,6.6135]
[1745548990870,5.28245368,151.19,151.16,6.6132]
[1745548991264,6.6117,151.2,151.16,6.6132]
[1745548991468,24.72,151.21,151.15,6.6137]
[1745548991767,24.72,151.21,151.12,8.2727413]
[1745548991963,24.72,151.21,151.13,1.8865]
[1745548992469,31.3312,151.21,151.13,1.8865]
[1745548992766,24.72,151.21,151.14,8.2727413]
[1745548992957,24.72,151.21,151.19,6.6117]
[1745548993163,24.72,151.21,151.16,8.2727413]
[1745548993863,24.72,151.21,151.17,6.6128]
[1745548994164,24.72,151.21,151.18,6.6124]
[1745548994365,24.72,151.21,151.16,8.2727413]
[1745548994667,24.72,151.24,151.18,8.2727413]
[1745548994963,24.72,151.24,151.2,6.6116]
[1745548995463,31.3301,151.24,151.18,8.2727413]
[1745548995768,24.72,151.24,151.18,8.2727413]
[1745548995967,500.62,151.27,151.2,8.2727413]
[1745548996165,31.3288,151.27,151.22,14.8831413]
[1745548996372,24.72,151.27,151.22,8.2727413]
[1745548997674,31.3286,151.27,151.22,14.8831413]
[1745548997873,24.72,151.27,151.22,8.2727413]
[1745548998269,24.72,151.27,151.23,6.6102]
[1745548998470,24.72,151.27,151.22,8.2727413]
[1745548999272,24.72,151.27,151.23,6.6101]
[1745549000376,31.3286,151.27,151.23,6.6101]
[1745549000567,31.3286,151.27,151.22,14.8833413]
[1745549000763,24.72,151.27,151.22,6.6106]
[1745549001374,6.6095,151.25,151.21,10.5506]
[1745549001567,6.6095,151.25,151.21,8.6004]
[1745549001773,24.72,151.27,151.2,10.2312413]
[1745549002072,6.6096,151.25,151.14,2.0222]
[1745549002273,6.6096,151.25,151.18,8.2727413]
[1745549002871,6.6091,151.26,151.18,8.2727413]
[1745549003271,24.72,151.27,151.18,8.2727413]
[1745549003577,24.72,151.27,151.2,8.2727413]
[1745549003777,24.72,151.3,151.25,6.609]
[1745549003968,31.3275,151.3,151.25,6.609]
[1745549004478,31.3275,151.3,151.26,6.6089]
[1745549005071,31.3275,151.3,151.25,6.6094]
[1745549005369,6.6077,151.29,151.25,6.6094]
[1745549005574,24.72,151.3,151.25,6.6094]
[1745549005874,24.72,151.3,151.26,6.6089]
[1745549006376,24.68765847,151.3,151.26,6.6089]
[1745549007280,31.29495847,151.3,151.26,6.6089]
[1745549007474,24.68765847,151.3,151.24,8.2727413]
[1745549007680,24.68765847,151.3,151.26,8.2727413]
[1745549007980,6.6064,151.32,151.26,8.2727413]
[1745549008177,24.72,151.33,151.26,8.2727413]
[1745549008372,31.326,151.33,151.26,8.2727413]
[1745549008780,24.72,151.33,151.28,8.2727413]
[1745549009381,24.72,151.33,151.3,6.6069]
[1745549011271,24.72,151.33,151.28,8.2727413]
[1745549011477,31.326,151.33,151.29,6.6076]
[1745549013786,24.72,151.33,151.29,6.6076]
[1745549014078,24.72,151.33,151.26,8.2727413]
[1745549014282,24.72,151.33,151.22,24.74]
[1745549014283,6.6079,151.29,151.22,24.74]
[1745549015584,6.6079,151.29,151.24,6.6095]
[1745549015785,6.6081,151.28,151.24,6.6095]
[1745549015985,24.72,151.33,151.25,8.2727413]
[1745549016182,24.72,151.33,151.27,6.6081]
[1745549016379,24.72,151.33,151.27,8.2727413]
[1745549016583,24.72,151.33,151.29,8.2727413]
[1745549017081,24.74,151.36,151.31,8.2727413]
[1745549017285,484.2327413,151.41,151.27,5.9191]
[1745549017286,24.74,151.38,151.33,8.2727413]
[1745549018892,475.96,151.41,151.35,8.2727413]
[1745549018893,500.7,151.41,151.35,8.2727413]
[1745549019186,500.7,151.41,151.35,14.8776413]
[1745549019790,6.6037,151.39,151.35,8.2727413]
[1745549021290,6.6037,151.39,151.35,14.8775413]
[1745549022993,6.6029,151.4,151.36,6.6045]
[1745549023596,6.6034,151.39,151.35,14.8776413]
[1745549023798,500.7,151.41,151.35,8.2727413]
[1745549024397,507.3026,151.41,151.37,6.6042]
[1745549024798,507.3026,151.41,151.35,8.2727413]
[1745549024998,507.3026,151.41,151.28,8.2727413]
[1745549024999,24.74,151.41,151.38,6.6034]
[1745549025797,24.72,151.44,151.37,8.2727413]
[1745549026298,6.6023,151.42,151.38,6.6033]
[1745549026898,6.602,151.42,151.37,14.8767413]
[1745549027098,6.602,151.42,151.37,8.2727413]
[1745549027600,6.602,151.42,151.37,14.8767413]
[1745549027899,6.6025,151.41,151.37,14.8767413]
[1745549029401,6.6029,151.4,151.36,6.6045]
[1745549029702,6.6029,151.4,151.35,13.9134413]
[1745549030196,6.6026,151.41,151.37,6.6042]
[1745549030500,24.72,151.44,151.35,13.9134413]
[1745549030901,6.6028,151.41,151.36,6.6042]
[1745549031200,24.72,151.44,151.36,6.6042]
[1745549031399,24.72,151.44,151.35,13.9134413]
[1745549033101,8.2727413,151.43,151.33,8.2727413]
[1745549033702,6.6029,151.4,151.36,6.6045]
[1745549033898,31.3229,151.4,151.36,6.6045]
[1745549034098,24.72,151.4,151.36,6.6045]
[1745549034701,31.323,151.4,151.36,6.6045]
[1745549034903,24.72,151.4,151.37,6.6041]
[1745549036704,31.3229,151.4,151.36,6.6045]
[1745549037504,24.72,151.4,151.35,8.2727413]
[1745549038103,24.72,151.4,151.37,8.2727413]
[1745549038404,24.72,151.43,151.37,8.2727413]
[1745549038704,6.6023,151.42,151.38,6.6034]
[1745549041407,6.6025,151.41,151.37,14.8767413]
[1745549041905,24.72,151.43,151.37,8.2727413]
[1745549043305,6.6023,151.42,151.38,6.6037]
[1745549043506,24.72,151.43,151.37,8.2727413]
[1745549044405,31.3216,151.43,151.39,6.603]
[1745549045106,24.72,151.43,151.4,6.6025]
[1745549045307,24.72,151.43,151.4,5.27724597]
[1745549045904,29.99724597,151.43,151.38,5.27724597]
[1745549046308,6.6027,151.41,151.38,5.27724597]
[1745549046507,29.99724597,151.43,151.4,5.27724597]
[1745549046812,6.6023,151.42,151.4,5.27724597]
[1745549048706,36.59884597,151.43,151.4,5.27724597]
[1745549049003,31.3216,151.43,151.4,5.27724597]
[1745549049310,6.6021,151.42,151.4,5.27724597]
[1745549049508,29.99724597,151.43,151.4,5.27724597]
[1745549050205,6.6024,151.41,151.4,5.27724597]
[1745549051010,6.603,151.4,151.38,5.27724597]
[1745549051206,6.603,151.4,151.36,13.90474597]
[1745549051411,5.27724597,151.39,151.34,5.27724597]
[1745549052108,11.88094597,151.39,151.35,6.605]
[1745549053813,11.88094597,151.39,151.36,5.27724597]
[1745549054208,6.6038,151.38,151.36,5.27724597]
[1745549054710,5.27724597,151.39,151.36,5.27724597]
[1745549054907,29.97724597,151.39,151.36,5.27724597]
[1745549055608,6.6041,151.38,151.36,5.27724597]
[1745549060212,31.3034,151.39,151.36,5.27724597]
[1745549061916,6.6038,151.38,151.36,5.27724597]
[1745549062813,31.3035,151.39,151.36,5.27724597]
[1745549064318,6.6038,151.38,151.36,5.27724597]
[1745549064919,31.3034,151.39,151.36,5.27724597]
[1745549065515,24.7,151.39,151.36,5.27724597]
[1745549065819,24.7,151.42,151.38,5.27724597]
[1745549066215,6.6026,151.41,151.38,5.27724597]
[1745549067326,6.6026,151.41,151.38,11.88084597]
[1745549069222,6.6029,151.4,151.38,5.27724597]
[1745549069520,5.27724597,151.41,151.37,5.27724597]
[1745549069820,6.6031,151.4,151.37,5.27724597]
[1745549070322,6.6034,151.39,151.37,5.27724597]
[1745549070621,5.27724597,151.41,151.37,11.88124597]
[1745549070819,6.6033,151.4,151.37,5.27724597]
[1745549071219,5.27724597,151.41,151.37,5.27724597]
[1745549071416,6.6032,151.4,151.37,5.27724597]
[1745549071611,5.27724597,151.41,151.37,5.27724597]
[1745549072121,6.6034,151.39,151.37,5.27724597]
[1745549073423,6.603,151.4,151.37,11.88134597]
[1745549074021,6.603,151.4,151.37,5.27724597]
[1745549075023,6.6033,151.39,151.37,5.27724597]
[1745549077619,6.6037,151.38,151.37,5.27724597]
[1745549077820,5.27724597,151.4,151.35,5.27724597]
[1745549078326,6.6039,151.38,151.35,5.27724597]
[1745549079128,6.6042,151.37,151.35,5.27724597]
[1745549079322,29.97724597,151.38,151.33,5.27724597]
[1745549079722,6.6053,151.35,151.33,5.27724597]
[1745549088030,6.6055,151.34,151.33,5.27724597]
[1745549088231,29.97724597,151.38,151.33,5.27724597]
[1745549088531,6.6052,151.35,151.33,5.27724597]
[1745549092735,6.6055,151.34,151.33,5.27724597]
[1745549093028,29.97724597,151.38,151.33,5.27724597]
[1745549093233,6.6053,151.35,151.33,5.27724597]
[1745549094735,6.6055,151.34,151.33,5.27724597]
[1745549095040,5.27724597,151.36,151.31,5.27724597]
[1745549095336,6.606,151.33,151.3,1.9237]
[1745549095836,6.6063,151.33,151.3,1.9237]
[1745549096536,6.6064,151.32,151.3,1.9237]
[1745549096736,29.97724597,151.34,151.3,1.9237]
[1745549096936,5.27724597,151.32,151.25,5.27724597]
[1745549097137,6.6077,151.29,151.25,5.27724597]
[1745549097533,6.6077,151.29,151.25,6.6092]
[1745549097737,6.6081,151.28,151.24,33.89264597]
[1745549097930,11.88534597,151.28,151.24,33.89264597]
[1745549098131,11.88534597,151.28,151.24,9.19264597]
[1745549098638,5.27724597,151.28,151.23,1.9835]
[1745549098943,5.27724597,151.26,151.19,5.27724597]
[1745549099635,5.27724597,151.26,151.18,28.5213]
[1745549099836,5.27724597,151.26,151.2,5.27724597]
[1745549100141,5.27724597,151.24,151.18,33.79854597]
[1745549100341,11.88744597,151.24,151.19,6.6119]
[1745549100543,5.27724597,151.24,151.18,33.79854597]
[1745549100742,5.27724597,151.22,151.18,3.8213]
[1745549100940,5.27724597,151.22,151.18,10.4334]
[1745549101241,5.27724597,151.22,151.18,3.8213]
[1745549101442,5.27724597,151.22,151.18,10.4335]
[1745549101644,5.27724597,151.22,151.18,3.8213]
[1745549101942,5.27724597,151.22,151.18,10.4336]
[1745549102144,6.6108,151.22,151.18,1.9406]
[1745549102446,5.27724597,151.22,151.18,1.9406]
[1745549102844,5.27724597,151.22,151.18,8.553]
[1745549103141,5.27724597,151.22,151.18,1.9406]
[1745549103335,11.88804597,151.22,151.18,1.9406]
[1745549103641,24.72,151.21,151.16,5.27724597]
[1745549103945,5.27724597,151.2,151.16,11.89054597]
[1745549104444,5.27724597,151.2,151.15,2.0359]
[1745549104646,11.88894597,151.2,151.15,8.6496]
[1745549105242,5.27724597,151.2,151.15,2.0359]
[1745549105443,5.27724597,151.18,151.14,11.89134597]
[1745549105749,5.27724597,151.18,151.14,5.27724597]
[1745549105943,5.27724597,151.18,151.15,6.6137]
[1745549106346,4.3974,151.29,151.16,5.27724597]
[1745549106545,5.27724597,151.26,151.21,5.27724597]
[1745549106737,6.6085,151.28,151.25,5.27724597]
[1745549107044,24.7,151.28,151.25,5.27724597]
[1745549108246,24.7,151.28,151.25,11.88654597]
[1745549109440,24.7,151.28,151.25,6.6093]
[1745549109645,24.7,151.28,151.22,8.26241984]
[1745549109837,475.98,151.38,151.26,8.26241984]
[1745549110037,8.26241984,151.36,151.26,8.26241984]
[1745549110240,8.26241984,151.34,151.24,8.26241984]
[1745549110443,475.98,151.38,151.26,8.26241984]
[1745549110648,6.6059,151.33,151.28,6.6078]
[1745549110949,8.26241984,151.36,151.26,8.26241984]
[1745549111345,6.6059,151.33,151.26,8.26241984]
[1745549111542,24.7,151.33,151.26,8.26241984]
[1745549111951,6.6065,151.32,151.27,6.6084]
[1745549112345,24.7,151.33,151.26,8.26241984]
[1745549112546,24.7,151.33,151.27,1.954]
[1745549112745,31.3062,151.33,151.28,8.6381]
[1745549113050,31.3062,151.33,151.28,16.90051984]
[1745549113446,6.6064,151.32,151.28,10.29241984]
[1745549113746,24.7,151.33,151.28,10.29241984]
[1745549113951,24.7,151.33,151.28,2.03]
[1745549114350,24.7,151.33,151.25,1.9223]
[1745549115948,24.7,151.33,151.21,379.7]
[1745549115949,8.26241984,151.27,151.07,62.24059777]
[1745549116152,6.6132,151.17,151.08,50.85208014]
[1745549116352,6.6132,151.17,151.1,8.26241984]
[1745549116754,6.6132,151.17,151.11,6.6154]
[1745549117050,6.6134,151.16,151.11,6.6154]
[1745549117251,24.7,151.18,151.13,8.26241984]
[1745549117554,31.3126,151.18,151.13,8.26241984]
[1745549117853,24.7,151.18,151.13,8.26241984]
[1745549118053,24.7,151.21,151.15,8.26241984]
[1745549118249,24.7,151.21,151.16,1.981]
[1745549118450,24.7,151.21,151.17,8.26241984]
[1745549118956,24.7,151.24,151.19,8.26241984]
[1745549119254,24.7,151.24,151.21,8.26241984]
[1745549119453,24.7,151.27,151.21,8.26241984]
[1745549119657,24.7,151.27,151.23,8.26241984]
[1745549119849,6.6078,151.29,151.23,8.26241984]
[1745549120049,6.6078,151.29,151.23,10.18511984]
[1745549120548,6.6081,151.28,151.23,10.18511984]
[1745549121551,6.6081,151.28,151.23,1.9227]
[1745549121951,24.7,151.3,151.24,14.87181984]
[1745549123256,24.7,151.3,151.25,6.6093]
[1745549123559,24.7,151.3,151.26,6.6086]
[1745549123753,500.68,151.33,151.26,6.6086]
[1745549124254,500.68,151.33,151.26,8.26241984]
[1745549124560,500.68,151.33,151.24,8.26241984]
[1745549124754,6.6067,151.32,151.26,6.6086]
[1745549126256,6.6067,151.32,151.27,6.6085]
[1745549126649,6.6069,151.31,151.24,8.26241984]
[1745549126854,500.68,151.33,151.26,6.6087]
[1745549127153,500.68,151.33,151.23,1.9227]
[1745549127355,8.26241984,151.25,151.08,7.78007472]
[1745549127560,8.26241984,151.22,151.12,8.26241984]
[1745549128059,34.91051984,151.24,151.12,8.26241984]
[1745549128259,34.91051984,151.24,151.13,3.9041]